bitfinex/quotes_BTCUSD_20241111
["timestamp","ask_amount","ask_price","bid_price","bid_amount"]
[1731363577643,0.11422305,86803.0,86758.0,0.0032524]
[1731363577843,0.03462239,86802.0,86758.0,0.0032524]
[1731363578049,0.14384544,86801.0,86758.0,0.0032524]
[1731363578299,0.14384544,86801.0,86752.0,0.04337795]
[1731363578300,0.69132787,86798.0,86752.0,0.04337795]
[1731363578430,0.69132787,86807.0,86752.0,0.04337795]
[1731363578431,0.69132787,86795.0,86752.0,0.04337795]
[1731363578644,0.14884544,86794.0,86752.0,0.04337795]
[1731363578895,0.14884544,86794.0,86738.0,0.005]
[1731363578896,0.11422305,86789.0,86732.0,0.005]
[1731363579082,0.03462239,86788.0,86753.0,0.01540717]
[1731363579296,0.69132787,86786.0,86755.0,0.005]
[1731363579517,0.02736007,86785.0,86755.0,0.005]
[1731363579763,0.69132787,86786.0,86755.0,0.005]
[1731363579764,0.02736007,86784.0,86755.0,0.005]
[1731363579961,0.69132787,86786.0,86755.0,0.005]
[1731363580129,0.03459548,86785.0,86755.0,0.005]
[1731363580471,0.63060951,86786.0,86755.0,0.005]
[1731363580688,0.03460228,86785.0,86755.0,0.005]
[1731363580911,0.01382858,86785.0,86754.0,0.005]
[1731363581060,0.62281372,86786.0,86754.0,0.005]
[1731363581292,0.17287081,86785.0,86762.0,0.17287081]
[1731363581496,0.17287081,86785.0,86760.0,0.0804]
[1731363581497,0.17287081,86775.0,86760.0,0.0804]
[1731363581674,0.17287081,86785.0,86753.0,0.047]
[1731363581880,0.17287081,86776.0,86754.0,0.17287081]
[1731363582076,0.11422305,86784.0,86754.0,0.17287081]
[1731363582303,0.11422305,86784.0,86755.0,0.17287081]
[1731363582304,0.17287081,86774.0,86755.0,0.17287081]
[1731363582455,0.11422305,86773.0,86755.0,0.17287081]
[1731363583004,0.03459889,86772.0,86755.0,0.17287081]
[1731363583209,0.17287081,86785.0,86755.0,0.17287081]
[1731363583210,0.11422305,86771.0,86762.0,0.0016948]
[1731363583411,0.03309388,86799.0,86764.0,0.17287081]
[1731363583708,0.0795,86812.0,86762.0,0.0016948]
[1731363583709,0.17287081,86787.0,86762.0,0.0016948]
[1731363583920,0.03459105,86786.0,86770.0,0.17287081]
[1731363584138,0.17287081,86795.0,86770.0,0.17287081]
[1731363584351,0.14881776,86794.0,86771.0,0.05756183]
[1731363584544,0.03459471,86793.0,86775.0,0.05744982]
[1731363584885,0.03459471,86792.0,86775.0,0.05744982]
[1731363585110,0.11422305,86804.0,86775.0,0.05744982]
[1731363585319,0.03459423,86803.0,86775.0,0.05744982]
[1731363585430,0.14881728,86802.0,86775.0,0.05744982]
[1731363585630,0.03459584,86801.0,86775.0,0.05744982]
[1731363585906,0.11422305,86800.0,86775.0,0.05744982]
[1731363586135,0.11422305,86800.0,86783.0,0.17287081]
[1731363586350,0.11422305,86800.0,86784.0,0.17287081]
[1731363586736,0.0795,86812.0,86795.0,0.05702453]
[1731363586737,0.03321486,86809.0,86795.0,0.05702453]
[1731363586945,0.17287081,86817.0,86796.0,0.23040381]
[1731363586946,0.03457917,86808.0,86796.0,0.23040381]
[1731363587149,0.17287081,86816.0,86796.0,0.27836743]
[1731363587352,0.17287081,86816.0,86796.0,0.10549662]
[1731363587728,0.17287081,86816.0,86798.0,0.05732618]
[1731363588090,0.17287081,86826.0,86799.0,0.17287081]
[1731363588297,0.03320756,86823.0,86804.0,0.05758986]
[1731363588504,0.17287081,86824.0,86804.0,0.05758986]
[1731363588505,0.11422305,86822.0,86804.0,0.05758986]
[1731363588633,0.11422305,86822.0,86805.0,0.17287081]
[1731363588843,0.11422305,86822.0,86806.0,0.05790905]
[1731363589256,0.03320756,86829.0,86815.0,0.0571194]
[1731363589450,0.17287081,86825.0,86809.0,0.05749702]
[1731363589636,0.11422305,86828.0,86811.0,0.17287081]
[1731363591088,0.11422305,86828.0,86812.0,0.05708666]
[1731363591745,0.17287081,86825.0,86786.0,0.05708166]
[1731363591951,0.11422305,86824.0,86815.0,0.17287081]
[1731363592172,0.03320756,86833.0,86788.0,0.05771946]
[1731363592392,0.17287081,86825.0,86805.0,0.05744199]
[1731363592839,0.16947069,86825.0,86805.0,0.05744199]
[1731363593244,0.16947069,86825.0,86785.0,0.04599]
[1731363593245,0.11422305,86824.0,86786.0,0.05708166]
[1731363593448,0.11422305,86824.0,86808.0,0.05743364]
[1731363593649,0.11422305,86824.0,86787.0,0.04776454]
[1731363593650,0.17287081,86823.0,86788.0,0.05771946]
[1731363593855,0.11422305,86822.0,86801.0,0.17287081]
[1731363594110,0.11422305,86822.0,86789.0,0.04773137]
[1731363594111,0.17287081,86820.0,86790.0,0.0571911]
[1731363594400,0.11422305,86820.0,86802.0,0.17287081]
[1731363594600,0.17287081,86819.0,86792.0,0.05713474]
[1731363594803,0.22268215,86835.0,86808.0,0.17287081]
[1731363594986,0.22268215,86835.0,86773.0,0.05710557]
[1731363594987,0.12254131,86776.0,86773.0,0.05710557]
[1731363595206,0.17287081,86826.0,86779.0,0.023]
[1731363595433,0.17287081,86826.0,86793.0,0.00505394]
[1731363595434,0.17287081,86798.0,86793.0,0.00505394]
[1731363595636,0.17287081,86807.0,86794.0,0.05704707]
[1731363595812,0.15560312,86807.0,86794.0,0.07353069]
[1731363596026,0.14697111,86807.0,86794.0,0.11951269]
[1731363596237,0.17287081,86816.0,86794.0,0.11951269]
[1731363596472,0.16423879,86816.0,86794.0,0.11951269]
[1731363597172,0.0032524,86844.0,86816.0,0.0570294]
[1731363597377,0.0032524,86844.0,86818.0,0.05771055]
[1731363597378,0.17287081,86830.0,86818.0,0.05771055]
[1731363597612,0.16813466,86844.0,86820.0,0.05783198]
[1731363597810,0.1644603,86844.0,86822.0,0.05774724]
[1731363598026,0.14698361,86843.0,86824.0,0.05711407]
[1731363598401,0.17287081,86853.0,86826.0,0.05795943]
[1731363598614,0.17287081,86853.0,86806.0,0.002]
[1731363598615,0.17287081,86844.0,86828.0,0.05757082]
[1731363598773,0.3,86845.0,86829.0,0.01379687]
[1731363599031,0.3,86845.0,86830.0,0.0814]
[1731363599244,0.3,86845.0,86831.0,0.0136974]
[1731363599441,0.3,86845.0,86830.0,0.0814]
[1731363599442,0.3,86845.0,86833.0,0.01366426]
[1731363599652,0.3,86845.0,86833.0,0.03666426]
[1731363600075,0.3,86845.0,86833.0,0.09449712]
[1731363600285,0.3,86845.0,86834.0,0.00135806]
[1731363600540,0.3,86845.0,86836.0,0.0135648]
[1731363600969,0.3,86845.0,86839.0,0.07130443]
[1731363600970,0.276996,86845.0,86839.0,0.07130443]
[1731363601170,0.276996,86845.0,86844.0,0.09350687]
[1731363601171,0.175038,86845.0,86844.0,0.09350687]
[1731363601376,0.17049959,86845.0,86844.0,0.09350687]
[1731363601792,0.17049959,86845.0,86844.0,0.0941859]
[1731363601999,0.07551604,86845.0,86844.0,0.0941859]
[1731363602207,0.02951004,86845.0,86844.0,0.0941859]
[1731363602636,1.60633035,86846.0,86845.0,0.023]
[1731363602868,1.60268428,86846.0,86845.0,0.09405164]
[1731363603299,1.57968128,86846.0,86845.0,0.09405164]
[1731363603502,1.53367528,86846.0,86845.0,0.09405164]
[1731363603858,1.48766928,86846.0,86845.0,0.09405164]
[1731363604484,1.40956928,86846.0,86845.0,0.09405164]
[1731363606280,1.41041698,86846.0,86845.0,0.09405164]
[1731363606475,1.35986676,86846.0,86845.0,0.09405164]
[1731363606734,1.10443311,86846.0,86845.0,0.09605164]
[1731363607812,1.04727007,86846.0,86845.0,0.09405164]
[1731363608079,0.86854649,86846.0,86845.0,0.09605164]
[1731363608302,0.33428428,86846.0,86845.0,0.09605164]
[1731363608507,0.20618428,86846.0,86845.0,0.09605164]
[1731363608868,0.17758428,86846.0,86845.0,0.09605164]
[1731363609128,0.17287081,86862.0,86858.0,0.05712514]
[1731363609435,0.0002,86889.0,86853.0,0.05723144]
[1731363609617,0.0008472,86918.0,86846.0,0.023]
[1731363609618,0.00520555,86931.0,86879.0,0.005]
[1731363609831,0.00520555,86931.0,86877.0,0.05786651]
[1731363610037,0.00520555,86931.0,86880.0,0.05791557]
[1731363611507,0.00520555,86931.0,86878.0,0.05746513]
[1731363611621,0.1294,86930.0,86865.0,0.06270831]
[1731363611843,0.1294,86930.0,86846.0,0.00197]
[1731363611844,0.1294,86930.0,86880.0,0.05791557]
[1731363612151,0.00520555,86931.0,86862.0,0.005]
[1731363612152,0.0493,86907.0,86881.0,0.087589]
[1731363612749,0.005,86915.0,86881.0,0.087589]
[1731363612750,0.002,86905.0,86881.0,0.087589]
[1731363612946,0.17287081,86923.0,86846.0,0.00197]
[1731363612947,0.1294,86882.0,86847.0,0.05787806]
[1731363613179,0.1294,86882.0,86856.0,0.01190769]
[1731363613383,0.1294,86882.0,86857.0,0.05716236]
[1731363613599,0.1294,86882.0,86859.0,0.05745909]
[1731363613816,0.1294,86882.0,86846.0,0.00197]
[1731363613817,0.1294,86882.0,86869.0,0.05724402]
[1731363614038,0.1294,86882.0,86846.0,0.00197]
[1731363614039,0.1294,86882.0,86871.0,0.05758646]
[1731363614270,0.1294,86882.0,86872.0,0.01111262]
[1731363614716,0.1294,86882.0,86873.0,0.05736854]
[1731363614997,0.11745,86882.0,86874.0,0.01104637]
[1731363615176,0.11745,86882.0,86875.0,0.05748062]
[1731363615394,0.06815,86882.0,86876.0,0.01098013]
[1731363615625,0.06503177,86882.0,86877.0,0.05786651]
[1731363615847,0.06503177,86882.0,86878.0,0.01091389]
[1731363616066,0.06503177,86882.0,86879.0,0.05755838]
[1731363616273,0.06503177,86882.0,86880.0,0.01084765]
[1731363616471,0.06503177,86882.0,86880.0,0.06876322]
[1731363618278,0.06503177,86882.0,86880.0,0.05791557]
[1731363618593,0.06503177,86882.0,86845.0,0.05750426]
[1731363618795,0.06503177,86882.0,86857.0,0.05716236]
[1731363618998,0.0483,86880.0,86859.0,0.05745909]
[1731363619212,0.0483,86880.0,86878.0,0.05746513]
[1731363620511,0.0483,86880.0,86879.0,0.010947]
[1731363620715,0.06587867,86882.0,86879.0,0.010947]
[1731363620926,0.06587867,86882.0,86880.0,0.05791557]
[1731363621145,0.06587867,86882.0,86877.0,0.0016938]
[1731363621146,0.06587867,86882.0,86881.0,0.0683013]
[1731363621572,0.05957792,86882.0,86881.0,0.0683013]
[1731363622005,0.0519715,86882.0,86881.0,0.0683013]
[1731363624707,0.0008469,86882.0,86881.0,0.0683013]
[1731363627733,0.0751,86894.0,86881.0,0.0683013]
[1731363627734,0.07266656,86894.0,86881.0,0.0683013]
[1731363628591,0.06835929,86894.0,86881.0,0.0683013]
[1731363629213,0.06493493,86894.0,86881.0,0.0683013]
[1731363629901,0.05920035,86894.0,86881.0,0.0683013]
[1731363630109,0.05920035,86894.0,86877.0,0.0016938]
[1731363630110,0.02796671,86899.0,86890.0,0.05712042]
[1731363630354,0.02796671,86899.0,86877.0,0.0016938]
[1731363630355,0.17287081,86904.0,86878.0,0.05746513]
[1731363630711,0.16696768,86904.0,86878.0,0.05746513]
[1731363631741,0.16696768,86904.0,86880.0,0.05791557]
[1731363632070,0.16696768,86904.0,86881.0,0.0032204]
[1731363632293,0.15669659,86904.0,86883.0,0.05723271]
[1731363632683,0.15669659,86904.0,86882.0,0.05715455]
[1731363632903,0.15101567,86904.0,86884.0,0.00321499]
[1731363633108,0.15101567,86904.0,86885.0,0.05757518]
[1731363633313,0.1423283,86904.0,86884.0,0.0572895]
[1731363633518,0.1423283,86904.0,86886.0,0.00313916]
[1731363633724,0.17287081,86918.0,86877.0,0.0016938]
[1731363633725,0.17287081,86918.0,86887.0,0.05721879]
[1731363633947,0.17287081,86908.0,86887.0,0.00313735]
[1731363634585,0.17287081,86908.0,86888.0,0.05728339]
[1731363635000,0.16674077,86918.0,86888.0,0.05728339]
[1731363635235,0.17287081,86909.0,86888.0,0.05728339]
[1731363635436,0.17287081,86909.0,86890.0,0.05712042]
[1731363635651,0.16674077,86918.0,86890.0,0.05712042]
[1731363635879,0.17287081,86909.0,86891.0,0.00313916]
[1731363636061,0.17287081,86909.0,86890.0,0.05712042]
[1731363636194,0.16674077,86918.0,86890.0,0.05712042]
[1731363636417,0.16674077,86918.0,86881.0,0.05748677]
[1731363636418,0.17287081,86909.0,86881.0,0.05748677]
[1731363636627,0.16674077,86918.0,86882.0,0.01307012]
[1731363636835,0.17287081,86909.0,86882.0,0.01307012]
[1731363637053,0.15614273,86909.0,86883.0,0.05723271]
[1731363637574,0.15614273,86909.0,86884.0,0.005]
[1731363637795,0.15614273,86909.0,86885.0,0.05757518]
[1731363639160,0.15614273,86909.0,86887.0,0.05721879]
[1731363639336,0.16674077,86918.0,86890.0,0.05712042]
[1731363639337,0.17287081,86908.0,86890.0,0.05712042]
[1731363639899,0.09804918,86908.0,86893.0,0.05723148]
[1731363640388,0.14786711,86918.0,86893.0,0.05723148]
[1731363640592,0.12953614,86918.0,86893.0,0.05723148]
[1731363641014,0.12078284,86918.0,86893.0,0.05723148]
[1731363641225,0.10835302,86918.0,86893.0,0.05723148]
[1731363641859,0.16034518,86927.0,86903.0,0.05733586]
[1731363642081,0.17287081,86907.0,86899.0,0.1]
[1731363642300,0.16034518,86927.0,86900.0,0.23074139]
[1731363642301,0.0008467,86909.0,86900.0,0.23074139]
[1731363642505,0.16034518,86927.0,86902.0,0.05785888]
[1731363642506,0.11896341,86927.0,86902.0,0.05785888]
[1731363642919,0.11896341,86927.0,86903.0,0.17701981]
[1731363643124,0.11396341,86927.0,86904.0,0.05780571]
[1731363643327,0.11109395,86927.0,86904.0,0.05780571]
[1731363643476,0.11109395,86927.0,86906.0,0.05797105]
[1731363643687,0.11109395,86927.0,86907.0,0.00414592]
[1731363643892,0.03309156,86928.0,86913.0,0.05779079]
[1731363644321,0.03309156,86927.0,86914.0,0.0041297]
[1731363644519,0.03309156,86927.0,86915.0,0.05740266]
[1731363644896,0.03309156,86927.0,86916.0,0.00444591]
[1731363646119,0.03309156,86929.0,86916.0,0.00444591]
[1731363646528,0.03309156,86929.0,86904.0,0.05780571]
[1731363646729,0.03509156,86929.0,86904.0,0.05780571]
[1731363646942,0.03309156,86929.0,86913.0,0.17287081]
[1731363647110,0.002,86929.0,86913.0,0.17287081]
[1731363647310,0.03309156,86929.0,86914.0,0.00402369]
[1731363647997,0.03309156,86929.0,86915.0,0.05740266]
[1731363648207,0.03309156,86930.0,86915.0,0.05740266]
[1731363648451,0.023,86929.0,86916.0,0.00415113]
[1731363649084,0.023,86929.0,86881.0,0.1]
[1731363649085,0.17287081,86917.0,86846.0,0.03393281]
[1731363649257,0.0823,86897.0,86879.0,0.05724401]
[1731363649665,0.023,86895.0,86844.0,0.00303455]
[1731363650072,0.023,86895.0,86878.0,0.0596358]
[1731363650272,0.023,86895.0,86878.0,0.0016934]
[1731363650488,0.023,86895.0,86879.0,0.00413836]
[1731363650713,0.025,86895.0,86879.0,0.00413836]
[1731363650913,0.03309156,86894.0,86879.0,0.00413836]
[1731363651166,0.03309156,86893.0,86879.0,0.00413836]
[1731363651378,0.025,86895.0,86844.0,0.00303455]
[1731363651379,0.0776,86854.0,86844.0,0.00303455]
[1731363651590,0.028,86848.0,86844.0,0.00303455]
[1731363651800,0.005,86845.0,86844.0,0.00303455]
[1731363652023,0.1266,86835.0,86799.0,0.057749]
[1731363652222,0.023,86832.0,86791.0,0.05932997]
[1731363652363,0.023,86830.0,86797.0,0.05702772]
[1731363652567,0.023,86828.0,86791.0,0.05932997]
[1731363652806,0.13722305,86828.0,86805.0,0.05763528]
[1731363653000,0.005,86823.0,86797.0,0.05702772]
[1731363653234,0.023,86824.0,86791.0,0.0017026]
[1731363653235,0.023,86814.0,86791.0,0.0017026]
[1731363653470,0.023,86812.0,86793.0,0.05739596]
[1731363653676,0.023,86810.0,86793.0,0.05739596]
[1731363653840,0.023,86808.0,86793.0,0.05739596]
[1731363654042,0.023,86804.0,86794.0,0.00386234]
[1731363654278,0.023,86802.0,86794.0,0.00386234]
[1731363654501,0.023,86800.0,86794.0,0.00386234]
[1731363654724,0.023,86810.0,86794.0,0.00386234]
[1731363654945,0.17287081,86814.0,86793.0,0.05739596]
[1731363654946,0.023,86804.0,86793.0,0.05739596]
[1731363655146,0.023,86804.0,86686.0,0.10179844]
[1731363655147,0.005,86783.0,86740.0,0.0571184]
[1731363655345,0.005,86783.0,86779.0,0.045997]
[1731363655549,0.17287081,86782.0,86780.0,0.01744616]
[1731363655751,0.17287081,86782.0,86781.0,0.05710643]
[1731363655955,0.16052828,86782.0,86781.0,0.05710643]
[1731363656158,0.005,86783.0,86781.0,0.05710643]
[1731363656360,0.000159,86784.0,86781.0,0.06112786]
[1731363656701,0.1600423,86791.0,86782.0,0.0575235]
[1731363657122,0.1600423,86791.0,86784.0,0.05798394]
[1731363657498,0.15050323,86791.0,86785.0,0.00403932]
[1731363657796,0.14277056,86791.0,86786.0,0.05700127]
[1731363658023,0.023,86804.0,86775.0,0.05764094]
[1731363658184,0.023,86804.0,86774.0,0.045999]
[1731363658185,0.17287081,86795.0,86787.0,0.00336303]
[1731363658413,0.17287081,86795.0,86788.0,0.0035938]
[1731363658622,0.17287081,86795.0,86786.0,0.05700127]
[1731363658830,0.13722305,86794.0,86787.0,0.0037608]
[1731363659052,0.13722305,86794.0,86783.0,0.05781828]
[1731363659299,0.13722305,86794.0,86743.0,0.05756986]
[1731363659498,0.023,86803.0,86775.0,0.05764094]
[1731363659720,0.17287081,86804.0,86777.0,0.05764081]
[1731363659721,0.17287081,86781.0,86777.0,0.05764081]
[1731363659888,0.17287081,86795.0,86779.0,0.05748442]
[1731363660095,0.17287081,86786.0,86780.0,0.02082897]
[1731363660309,0.17287081,86785.0,86781.0,0.05710643]
[1731363660515,0.16405687,86795.0,86780.0,0.00378114]
[1731363660733,0.16597511,86804.0,86783.0,0.05781828]
[1731363660964,0.17287081,86795.0,86782.0,0.0575235]
[1731363661176,0.17287081,86795.0,86785.0,0.05788558]
[1731363661399,0.15822748,86814.0,86787.0,0.05742565]
[1731363661626,0.15987036,86805.0,86789.0,0.05719415]
[1731363661842,0.15987036,86805.0,86791.0,0.05779196]
[1731363662047,0.15987036,86805.0,86793.0,0.0574584]
[1731363662280,0.15987036,86805.0,86789.0,0.05719415]
[1731363662478,0.15987036,86805.0,86774.0,0.046]
[1731363662479,0.11422305,86804.0,86790.0,0.00344186]
[1731363662703,0.002,86798.0,86775.0,0.05764094]
[1731363662913,0.11422305,86797.0,86775.0,0.05764094]
[1731363663115,0.15242141,86794.0,86776.0,0.0034622]
[1731363663337,0.023,86802.0,86795.0,0.002]
[1731363663553,0.023,86802.0,86801.0,0.17287081]
[1731363663757,0.023,86802.0,86796.0,0.2708]
[1731363663984,0.00288008,86820.0,86801.0,0.00340524]
[1731363664187,0.17287081,86857.0,86807.0,0.17287081]
[1731363664404,0.17287081,86857.0,86804.0,0.005]
[1731363664405,0.17287081,86817.0,86816.0,0.05749305]
[1731363664647,0.17287081,86830.0,86829.0,0.002]
[1731363665062,0.17287081,86857.0,86827.0,0.05724931]
[1731363665063,0.17287081,86848.0,86838.0,0.002]
[1731363665277,0.17287081,86839.0,86821.0,0.05720351]
[1731363665478,0.023,86846.0,86830.0,0.05797474]
[1731363665687,0.11422305,86845.0,86832.0,0.002]
[1731363665888,0.11422305,86845.0,86839.0,0.002]
[1731363666118,0.11422305,86845.0,86835.0,0.002]
[1731363666322,0.082,86844.0,86835.0,0.002]
[1731363666584,0.11422305,86843.0,86835.0,0.002]
[1731363666990,0.11422305,86843.0,86830.0,0.05797474]
[1731363667260,0.11422305,86843.0,86829.0,0.001703]
[1731363667261,0.02587869,86842.0,86829.0,0.05910151]
[1731363667425,0.023,86840.0,86830.0,0.17287081]
[1731363667646,0.023,86838.0,86830.0,0.17287081]
[1731363667846,0.11422305,86837.0,86832.0,0.002]
[1731363668266,0.11422305,86837.0,86829.0,0.05910151]
[1731363668511,0.11422305,86837.0,86834.0,0.002]
[1731363669121,0.17287081,86866.0,86838.0,0.05714348]
[1731363669289,0.17287081,86866.0,86829.0,0.001703]
[1731363669290,0.17287081,86848.0,86830.0,0.05797474]
[1731363669490,0.17287081,86848.0,86831.0,0.00337292]
[1731363669693,0.17287081,86848.0,86833.0,0.05768363]
[1731363669959,0.17287081,86855.0,86834.0,0.2708]
[1731363670114,0.17287081,86866.0,86857.0,0.05746693]
[1731363670329,0.17287081,86866.0,86865.0,0.05971234]
[1731363670547,0.0803,86885.0,86859.0,0.05773987]
[1731363670712,0.17287081,86889.0,86884.0,0.002]
[1731363670890,0.17287081,86889.0,86885.0,0.2708]
[1731363671318,0.0371,86885.0,86839.0,0.17287081]
[1731363671545,0.00287848,86884.0,86876.0,0.17287081]
[1731363671765,0.17287081,86879.0,86848.0,0.17287081]
[1731363671973,0.023,86877.0,86867.0,0.17287081]
[1731363672194,0.023,86875.0,86849.0,0.05778109]
[1731363672395,0.077,86872.0,86858.0,0.17287081]
[1731363672612,0.14010103,86871.0,86849.0,0.05778109]
[1731363673036,0.14010103,86871.0,86839.0,0.17287081]
[1731363673037,0.023,86865.0,86840.0,0.05719421]
[1731363673253,0.17287081,86866.0,86840.0,0.05719421]
[1731363673254,0.11422305,86861.0,86840.0,0.05719421]
[1731363673535,0.023,86853.0,86840.0,0.17287081]
[1731363673742,0.023,86851.0,86840.0,0.17287081]
[1731363673950,0.023,86849.0,86840.0,0.17287081]
[1731363674154,0.023,86849.0,86831.0,0.05738834]
[1731363674155,0.1171018,86848.0,86831.0,0.05738834]
[1731363675413,0.17287081,86847.0,86831.0,0.05738834]
[1731363675618,0.11710181,86846.0,86831.0,0.05738834]
[1731363676020,0.10631074,86846.0,86831.0,0.05738834]
[1731363676454,0.10631074,86846.0,86830.0,0.05797474]
[1731363676870,0.10631074,86846.0,86830.0,0.05997474]
[1731363677083,0.10631074,86846.0,86830.0,0.05797474]
[1731363678344,0.10801614,86846.0,86830.0,0.05797474]
[1731363679217,0.10801614,86846.0,86831.0,0.17287081]
[1731363679218,0.00458416,86846.0,86831.0,0.17287081]
[1731363679410,0.0017054,86846.0,86832.0,0.05754229]
[1731363679734,0.0017054,86846.0,86830.0,0.05740991]
[1731363680189,0.17287081,86845.0,86830.0,0.05740991]
[1731363680802,0.16663558,86845.0,86830.0,0.05740991]
[1731363681238,0.16663558,86845.0,86844.0,0.002]
[1731363681447,0.16663558,86845.0,86830.0,0.05740991]
[1731363681659,0.0017054,86846.0,86832.0,0.17287081]
[1731363681875,0.0017054,86846.0,86834.0,0.05768953]
[1731363682088,0.0017054,86846.0,86845.0,0.002]
[1731363683153,0.0017054,86846.0,86839.0,0.005]
[1731363683154,0.0017054,86846.0,86840.0,0.005]
[1731363683371,0.0017054,86846.0,86845.0,0.06236452]
[1731363683604,0.17287081,86855.0,86854.0,0.002]
[1731363683808,0.17287081,86855.0,86854.0,0.05981282]
[1731363684003,0.0494,86903.0,86854.0,0.05981282]
[1731363684004,0.0494,86903.0,86861.0,0.05777011]
[1731363684297,0.17287081,86867.0,86866.0,0.05715524]
[1731363684533,0.0494,86903.0,86866.0,0.05715524]
[1731363684728,0.0807467,86904.0,86867.0,0.17144144]
[1731363684855,0.0807467,86904.0,86836.0,0.05766113]
[1731363684856,0.17287081,86868.0,86836.0,0.05766113]
[1731363685089,0.1171013,86867.0,86846.0,0.17287081]
[1731363685261,0.1171013,86867.0,86837.0,0.17287081]
[1731363685262,0.17287081,86865.0,86837.0,0.17487081]
[1731363685499,0.0028787,86864.0,86837.0,0.23194644]
[1731363685714,0.0028787,86864.0,86837.0,0.17487081]
[1731363685944,0.11422305,86859.0,86837.0,0.17487081]
[1731363686401,0.17287081,86855.0,86838.0,0.05748964]
[1731363686623,0.11422305,86854.0,86838.0,0.06054456]
[1731363686839,0.17287081,86853.0,86838.0,0.00305492]
[1731363687052,0.17287081,86853.0,86839.0,0.05703239]
[1731363687053,0.11422305,86852.0,86839.0,0.05703239]
[1731363687248,0.0028785,86851.0,86838.0,0.00305492]
[1731363687456,0.11422305,86850.0,86840.0,0.00303092]
[1731363687669,0.11422305,86850.0,86810.0,0.0123926]
[1731363687670,0.28709386,86841.0,86810.0,0.0073926]
[1731363687893,0.023,86829.0,86810.0,0.0073926]
[1731363688094,0.11422305,86822.0,86817.0,0.17287081]
[1731363688315,0.02587977,86821.0,86811.0,0.00288422]
[1731363688527,0.11422305,86812.0,86810.0,0.0073926]
[1731363688732,0.10648021,86811.0,86810.0,0.0073926]
[1731363688963,0.22070326,86811.0,86810.0,0.0073926]
[1731363689200,0.023,86810.0,86792.0,0.0032524]
[1731363689421,0.023,86796.0,86792.0,0.0032524]
[1731363689654,0.023,86796.0,86776.0,0.0073926]
[1731363689655,0.0349,86792.0,86776.0,0.0073926]
[1731363689920,0.11422305,86784.0,86778.0,0.17287081]
[1731363690137,0.11422305,86784.0,86776.0,0.0073926]
[1731363690138,0.13722305,86784.0,86776.0,0.0073926]
[1731363690358,0.13722305,86784.0,86758.0,0.23326468]
[1731363690359,0.123,86783.0,86758.0,0.23326468]
[1731363690589,0.123,86783.0,86758.0,0.06039387]
[1731363690590,0.13722305,86759.0,86758.0,0.06039387]
[1731363690816,0.13722305,86759.0,86729.0,0.17287081]
[1731363690817,0.123,86758.0,86741.0,0.17287081]
[1731363691036,0.123,86752.0,86702.0,0.046042]
[1731363691289,0.123,86746.0,86720.0,0.17287081]
[1731363691509,0.123,86746.0,86693.0,0.17287081]
[1731363691510,0.023,86744.0,86711.0,0.0002]
[1731363691721,0.11422305,86727.0,86714.0,0.17287081]
[1731363691927,0.11422305,86727.0,86711.0,0.0002]
[1731363691928,0.00288294,86726.0,86711.0,0.0002]
[1731363692159,0.11422305,86725.0,86711.0,0.0002]
[1731363692385,0.19587081,86735.0,86711.0,0.0002]
[1731363692386,0.11422305,86719.0,86711.0,0.0002]
[1731363692848,0.11422305,86719.0,86718.0,0.002]
[1731363693068,0.11422305,86719.0,86711.0,0.0002]
[1731363693300,0.11422305,86715.0,86711.0,0.0002]
[1731363693522,0.02588347,86714.0,86711.0,0.0002]
[1731363693756,0.11422305,86713.0,86711.0,0.0002]
[1731363693969,0.02588347,86714.0,86711.0,0.0002]
[1731363693970,0.11710672,86712.0,86711.0,0.0002]
[1731363694181,0.11710672,86712.0,86707.0,0.0073926]
[1731363694182,0.14010672,86712.0,86707.0,0.0073926]
[1731363694397,0.13722305,86708.0,86691.0,0.0002]
[1731363694605,0.11422305,86695.0,86691.0,0.0002]
[1731363694816,0.02588396,86707.0,86691.0,0.0002]
[1731363694817,0.11422305,86692.0,86691.0,0.0002]
[1731363694967,0.13722305,86692.0,86691.0,0.0002]
[1731363695169,0.11422305,86692.0,86691.0,0.0002]
[1731363695405,0.11399926,86692.0,86691.0,0.0002]
[1731363697035,0.023,86691.0,86672.0,0.0073926]
[1731363697251,0.11422305,86678.0,86672.0,0.0073926]
[1731363697453,0.00288473,86677.0,86672.0,0.0073926]
[1731363697661,0.11422305,86676.0,86672.0,0.0073926]
[1731363697835,0.00288481,86675.0,86672.0,0.0073926]
[1731363698069,0.00288481,86675.0,86633.0,0.0058519]
[1731363698070,0.123,86672.0,86633.0,0.0008519]
[1731363698266,0.11422305,86654.0,86640.0,0.17287081]
[1731363698500,0.7934,86618.0,86594.0,0.05796982]
[1731363698924,0.005,86615.0,86594.0,0.05796982]
[1731363699140,0.17287081,86614.0,86596.0,0.05700291]
[1731363699319,0.17287081,86605.0,86596.0,0.05700291]
[1731363699657,0.005,86611.0,86535.0,0.05713276]
[1731363699871,0.005,86611.0,86534.0,0.01195133]
[1731363699872,0.17287081,86605.0,86585.0,0.046095]
[1731363700085,0.17287081,86595.0,86586.0,0.05764108]
[1731363700291,0.17287081,86605.0,86535.0,0.05713276]
[1731363700520,0.7934,86618.0,86579.0,0.05706883]
[1731363700740,0.7823136,86618.0,86579.0,0.05706883]
[1731363700952,0.0002,86589.0,86579.0,0.0572418]
[1731363701168,0.0002,86589.0,86578.0,0.04609]
[1731363701169,0.5837856,86618.0,86617.0,0.05987921]
[1731363701386,0.5837856,86618.0,86617.0,0.13917921]
[1731363701637,0.5837856,86618.0,86594.0,0.05840295]
[1731363701877,0.53139514,86618.0,86617.0,0.17410226]
[1731363702094,0.53139514,86618.0,86606.0,0.05787235]
[1731363702310,0.53139514,86618.0,86605.0,0.0793]
[1731363702311,0.17287081,86616.0,86605.0,0.05752614]
[1731363702526,0.53139514,86618.0,86617.0,0.002]
[1731363702747,0.53139514,86618.0,86595.0,0.05751085]
[1731363702962,0.53139514,86618.0,86617.0,0.002]
[1731363703169,0.17287081,86617.0,86610.0,0.002]
[1731363703387,0.005,86616.0,86595.0,0.05751085]
[1731363703598,0.14130899,86617.0,86616.0,0.05909072]
[1731363703815,0.13164723,86617.0,86616.0,0.05909072]
[1731363704007,0.53639514,86618.0,86596.0,0.05769145]
[1731363704140,0.17287081,86617.0,86595.0,0.05751085]
[1731363704974,0.17287081,86616.0,86595.0,0.05751085]
[1731363705238,0.17287081,86616.0,86596.0,0.1]
[1731363705449,0.51782519,86618.0,86603.0,0.15783209]
[1731363705621,0.51782519,86618.0,86599.0,0.11422305]
[1731363705622,0.17287081,86617.0,86611.0,0.1]